{"text_format":"1","workbook":"xlsx","n_sheets":5,"sheets":["Tarifario Interior","Tarifario Frontera","Tarifario Aeropuerto","PROFORMA_TEMP","PARAMETROS_TEMP"],"not_rendered":{"charts":0,"images":1,"macros":1,"external_links":0,"defined_names":5,"comments":1,"pivot_tables":0},"unopened":[],"bounds":{"document_bytes":16777216,"sheet_cells":100000,"rows_first":2000,"rows_last":500,"rows_between":2000,"halvings":0,"cell_chars":16384,"cell_head_chars":4096},"cells_cut":0,"cells_raw":0,"read":"whole","date_system":"1900"}

{"sheet":"Tarifario Interior","index":0,"n_rows":31,"n_cols":3,"rows_kept":31,"cut":false,"hidden":false,"merged":[[0,0,0,2],[2,0,2,2],[4,0,4,2],[6,0,6,2],[20,0,20,1],[8,0,8,2],[9,0,10,0],[11,0,12,0],[13,0,13,2],[14,0,16,0],[17,0,19,0],[26,0,26,1],[27,0,27,2],[28,0,28,1],[21,0,21,2],[22,0,22,1],[23,0,23,1],[24,0,24,1],[25,0,25,1]]}
["Depósitos de Aduana Interior"]
[]
["SERVICIOS REGULADOS\nDEPÓSITOS DE ADUANA INTERIOR"]
[]
["Servicio Logístico (*) 0.45 % del valor CIF "]
[]
["(*) Tarifa aplicada a todas las actividades descritas en el Artículo 11 del Reglamento para la Concesión de Recintos Aduaneros a excepción del Servicio prestado sobre mercancías consignadas en la modalidad de Depósitos Transitorios, despacho fronterizo, régimen viajeros (hasta los valores permitidos en el Art. 195 del Reglamento a la Ley General de Aduanas) y tráfico postal."]
[]
["Servicio de almacenaje "]
["Mercancía General","De 1 a 5 días","Libre"]
[null,"Períodos de 15 días","1.20 $US / Tonelada."]
["Mercancía Peligrosa","De 1 a 5 días","Libre"]
[null,"Períodos de 15 días","1.50 $US / Tonelada."]
["Contenedores vacíos o llenos "]
["Contenedor de 20 pies ","De 1 a 15 días","7.00 $US / Contenedor"]
[null,"De 16 a 31 días","9.00 $US / Contenedor"]
[null,"Más de 31 días","10.00 $US / Contenedor / día"]
["Contenedor de 40 pies","De 1 a 15 días","13.00 $US / Contenedor"]
[null,"De 16 a 31 días","17.00 $US / Contenedor"]
[null,"Más de 31 días","20.00 $US / Contenedor / día"]
["Graneles (Se considera mercancía a granel toda aquella que no tenga envase)",null,"0.05 $US / Tonelada / día"]
["Vehículos"]
["Vehículos hasta 500 Kg. ",null,"6.00 $US/vehículo"]
["Vehículos más de 500 hasta 800 Kg ",null,"7.00 $US/vehículo"]
["Vehículos más de 800 hasta 1200 Kg ",null,"8.00 $US/vehículo"]
["Vehículos más de 1200 hasta 2500 Kg",null,"18.00 $US/vehículo"]
["Vehículos con más de 2500 Kg",null,"20.00 $US/vehículo"]
["Seguro de almacenamiento "]
["Se cancelará por cada periodo de 30 días, siempre y cuando el cliente no presente una póliza de seguro a satisfacción del Concesionario. ",null,"0.08 % del valor CIF"]
[]
["Fuente: http://www.aduana.gob.bo/aduana7/content/dep%C3%B3sitos-de-aduana-interior"]

{"sheet":"Tarifario Frontera","index":1,"n_rows":35,"n_cols":3,"rows_kept":35,"cut":false,"hidden":false,"merged":[[11,0,12,0],[20,0,20,1],[21,0,21,2],[23,0,23,1],[17,0,19,0],[14,0,16,0],[22,0,22,1],[32,0,32,1],[31,0,31,1],[30,0,30,1],[0,0,0,2],[2,0,2,2],[4,0,4,2],[8,0,8,2],[6,0,6,2],[13,0,13,2],[28,0,28,1],[27,0,27,2],[29,0,29,2],[26,0,26,1],[25,0,25,1],[24,0,24,1],[9,0,10,0]]}
["Depósitos de Aduana en Frontera"]
[]
["SERVICIOS REGULADOS\nDEPÓSITOS DE ADUANA EN FRONTERA"]
[]
["Servicio Logístico (*) 0.45 % del valor CIF "]
[]
["(*) Tarifa aplicada a todas las actividades descritas en el Artículo 11 del Reglamento para la Concesión de Recintos Aduaneros a excepción del Servicio prestado sobre mercancías consignadas en la modalidad de Depósitos Transitorios, despacho fronterizo, régimen viajeros (hasta los valores permitidos en el Art. 195 del Reglamento a la Ley General de Aduanas) y tráfico postal."]
[]
["Servicio de almacenaje "]
["Mercancía General","De 1 a 5 días","Libre"]
[null,"Periodos de 15 días","1.80 $US / Tonelada."]
["Mercancía Peligrosa","De 1 a 5 días","Libre"]
[null,"Periodos de 15 días","2.00 $US / Tonelada."]
["Contenedores vacíos o llenos"]
["Contenedor de 20 pies","De 1 a 15 días","8.00 $US / Contenedor"]
[null,"De 16 a 31 días","10.00 $US / Contenedor"]
[null,"Más de 31 días","11.00 $US / Contenedor / día"]
["Contenedor de 40 pies","De 1 a 15 días","14.00 $US / Contenedor"]
[null,"De 16 a 31 días","18.00 $US / Contenedor"]
[null,"Más de 31 días","21.00 $US / Contenedor / día"]
["Graneles (Se considera mercancía a granel toda aquella que no tenga envase )",null,"0.06 $US / Tonelada / día"]
["Vehículos"]
["Vehículos hasta 500 Kg.",null,"7.00 $US/vehículo"]
["Vehículos más de 500 hasta 800 Kg",null,"8.00 $US/vehículo"]
["Vehículos más de 800 hasta 1200 Kg",null,"9.00 $US/vehículo"]
["Vehículos más de 1200 hasta 2500 Kg",null,"19.00 $US/vehículo"]
["Vehículos con más de 2500 Kg",null,"21.00 $US/vehículo"]
["Seguro de almacenamiento "]
["Se cancelará por cada periodo de 30 días, siempre y cuando el cliente no presente una póliza de seguro a satisfacción del Concesionario.",null,"0.08 % del valor CIF"]
["Servicio de asistencia al control de Tránsitos "]
["Mercancías en tránsito de importación",null,"12.00 $US / MIC-DTA"]
["Mercancías en tránsito de exportación",null,"12.00 $US / Factura comercial"]
["Mercancías en tránsito de reexportación y reembarque",null,"12.00 $US /documento autorizando reexportación o reexpedición"]
[]
["Fuente: http://www.aduana.gob.bo/aduana7/content/dep%C3%B3sitos-de-aduana-en-frontera"]

{"sheet":"Tarifario Aeropuerto","index":2,"n_rows":21,"n_cols":3,"rows_kept":21,"cut":false,"hidden":false,"merged":[[11,0,12,0],[8,0,8,2],[13,0,13,2],[18,0,18,1],[16,0,16,1],[15,0,15,1],[14,0,14,1],[17,0,17,2],[0,0,0,2],[2,0,2,2],[4,0,4,2],[6,0,6,2],[9,0,10,0]]}
["Depósitos de Aduana Aeropuerto"]
[]
["SERVICIOS REGULADOS\nDEPÓSITOS DE ADUANA AEROPUERTO"]
[]
["Servicio Logístico (*) 0.45 % del valor CIF "]
[]
["(*) Tarifa aplicada a todas las actividades descritas en el Artículo 11 del Reglamento para la Concesión de Recintos Aduaneros a excepción del Servicio prestado sobre mercancías consignadas en la modalidad de Depósitos Transitorios, despacho fronterizo, régimen viajeros (hasta los valores permitidos en el Art. 195 del Reglamento a la Ley General de Aduanas) y tráfico postal."]
[]
["Servicio de almacenaje"]
["Mercancía General","De 1 a 5 días","Libre"]
[null,"Periodos de 15 días","0.09 $US / Kg."]
["Mercancía Peligrosa ","De 1 a 5 días","Libre"]
[null,"Periodos de 15 días","1.50 $US / Kg."]
["Contenedores vacíos o llenos "]
["De 1 a 15 días",null,"7.00 $US / Contenedor"]
["De 16 a 31 días",null,"9.00 $US / Contenedor"]
["Más de 31 días",null,"10.00 $US / Contenedor / día"]
["Seguro de almacenamiento "]
["Se cancelará por cada periodo de 30 días, siempre y cuando el cliente no presente una póliza de seguro a satisfacción del Concesionario.",null,"0.10 % del valor CIF"]
[]
["Fuente: http://www.aduana.gob.bo/aduana7/content/dep%C3%B3sitos-de-aduana-aeropuerto"]

{"sheet":"PROFORMA_TEMP","index":3,"n_rows":36,"n_cols":5,"rows_kept":36,"cut":false,"hidden":false,"merged":[[0,0,0,4]]}
["PROFORMA DEPOSITO TEMPORAL (IMPORTACIONES)"]
[]
["FOB $US",722.17,null,"DIAS EN RECINTO",{"$f":"(B7-B6)+1","v":3}]
["TOTAL COSTOS Bs.",352]
["CIF $US",{"$f":"ROUND((B4/B13)+B3,2)","v":772.74},null,"PERIODOS ALM.",{"$f":"IF(B11=1,PARAMETROS_TEMP!B17,IF(B11=2,PARAMETROS_TEMP!B18,\"Otro\"))","v":"LIBRE"}]
["FECHA DE INGRESO","2013-09-17"]
["FECHA DE SALIDA","2013-09-19",null,"PERIODOS ALM. VEH.",{"$f":"PARAMETROS_TEMP!B22","v":1}]
["PESO (Kg.)",35]
["PESO (Tn.)",{"$f":"B8/1000","v":3.5000000000000003E-2},null,"PERIODOS SEG.",{"$f":"PARAMETROS_TEMP!B20","v":1}]
["TIPO DE RECINTO",3]
["TIPO DE MERCANCIA",1]
["CONTENEDORES",1]
["TIPO DE CAMBIO",6.96]
[]
[null,null,"Tarifario","Monto $us","Monto Bs."]
[null,"Servicio Logístico",{"$f":"PARAMETROS_TEMP!B24","v":0.45},{"$f":"ROUND((B5*C16)/100,2)","v":3.48},{"$f":"ROUND(D16*B13,2)","v":24.22}]
[null,"Servicio Almacenaje",{"$f":"MAX(Tarifario)","v":0},{"$f":"ROUND(IF(OR(PROFORMA_TEMP!B11=1,PROFORMA_TEMP!B11=2),IF(PROFORMA_TEMP!E5<>\"LIBRE\",MAX(Monto)*PROFORMA_TEMP!E5,0),MAX(Monto)),2)","v":0},{"$f":"ROUND(D17*B13,2)","v":0}]
[null,"Seguro de Almacenamiento",{"$f":"PARAMETROS_TEMP!B45","v":0.1},{"$f":"ROUND(((B5*C18)/100)*E9,2)","v":0.77},{"$f":"ROUND((D18*B13),2)","v":5.36}]
[null,null,null,"TOTAL :",{"$f":"SUM(E16:E18)","v":29.58}]
[]
[]
[]
[]
[]
[]
[]
[]
[]
[]
[]
[]
[]
[]
[]
[]
["DAB/DSIS/AP-II/ebz"]

{"sheet":"PARAMETROS_TEMP","index":4,"n_rows":61,"n_cols":6,"rows_kept":61,"cut":false,"hidden":true,"merged":[]}
[]
[]
["TIPO DE ADUANA",null,null,null,"Cálculo del cobro de servicio logistico","monto final Bs."]
["Aduana Interior",null,null,null,"cif*valor de tarifario","cálculo realizado en Bs."]
["Frontera"]
["Aeropuerto",null,null,null,"Cálculo del cobro del seguro de almacenamiento","monto final Bs."]
[null,null,null,null,"cif*valor de tarifario","cálculo realizado en Bs. * periodos seg."]
["TIPO DE MERCANCIA"]
["Mercancia en General",null,null,null,"SERVICIO DE ALMACENAJE"]
["Mercancia Peligrosa",null,null,null,"Cálculo del cobro de mercancia general y peligrosa $us","Monto final Bs."]
["Contenedores de 20 pies",null,null,1,"interior/frontera"]
["Contenedores de 40 pies",null,null,null,"peso Tn.*valor tarifario","calculo realizado en Bs. * períodos alm."]
["Graneles",null,null,2,"aeropuerto"]
["Vehiculos",null,null,null,"peso Kg.*valor tarifario","calculo realizado en Bs. * períodos alm."]
[]
["CALCULO DE PERIODOS DE ALMACENAJE POR TIPO DE MERCANCIA",null,null,null,"Cálculo del cobro de contenedores de 20 y 40 $us","Monto final Bs."]
["GENERAL",{"$f":"IF(AND(PROFORMA_TEMP!E3>=1,PROFORMA_TEMP!E3<=5),\"LIBRE\",IF(AND(PROFORMA_TEMP!E3>=6,PROFORMA_TEMP!E3<=15),1,IF(AND(PROFORMA_TEMP!E3>=16,PROFORMA_TEMP!E3<=30),2,IF(AND(PROFORMA_TEMP!E3>=31,PROFORMA_TEMP!E3<=45),3,IF(AND(PROFORMA_TEMP!E3>=46,PROFORMA_TEMP!E3<=60),4,\"ADUANERO\")))))","v":"LIBRE"},null,1,"interior/frontera/aeropuerto"]
["PELIGROSA",{"$f":"IF(AND(PROFORMA_TEMP!E3>=1,PROFORMA_TEMP!E3<=5),\"LIBRE\",IF(AND(PROFORMA_TEMP!E3>=6,PROFORMA_TEMP!E3<=15),1,IF(AND(PROFORMA_TEMP!E3>=16,PROFORMA_TEMP!E3<=30),2,IF(AND(PROFORMA_TEMP!E3>=31,PROFORMA_TEMP!E3<=45),3,IF(AND(PROFORMA_TEMP!E3>=46,PROFORMA_TEMP!E3<=60),4,\"ADUANERO\")))))","v":"LIBRE"},null,null,"valor de tarifario hasta 31 dias","calculo realizado en Bs."]
[null,null,null,2,"interior/frontera/aeropuerto"]
["CALCULO DE PERIODOS DE SEGURO DE ALMACENAMIENTO",{"$f":"IF(AND(PROFORMA_TEMP!E3>=1,PROFORMA_TEMP!E3<=30),1,IF(AND(PROFORMA_TEMP!E3>=31,PROFORMA_TEMP!E3<=60),2,\"ADUANERO\"))","v":1},null,null,"valor de tarifario * cantidad de dias mayor a 31","calculo realizado en Bs."]
[]
["CALCULO DE PERIODOS DE VEHICULOS",{"$f":"IF(AND(PROFORMA_TEMP!E3>=1,PROFORMA_TEMP!E3<=15),1,IF(AND(PROFORMA_TEMP!E3>=16,PROFORMA_TEMP!E3<=30),2,IF(AND(PROFORMA_TEMP!E3>=31,PROFORMA_TEMP!E3<=45),3,IF(AND(PROFORMA_TEMP!E3>=46,PROFORMA_TEMP!E3<=60),4,\"ADUANERO\"))))","v":1},null,null,"Cálculo del cobro de graneles $us","Monto final Bs."]
[null,null,null,1,"interior/frontera"]
["SERVICIO LOGISTICO",{"$f":"IF(PROFORMA_TEMP!B10=1,0.45,IF(PROFORMA_TEMP!B10=2,0.45,IF(PROFORMA_TEMP!B10=3,0.45,\"ERROR\")))","v":0.45},null,null,"valor de tarifario * peso Tn. * dias en recinto","calculo realizado en Bs."]
[]
["SERVICIO DE ALMACENAJE",null,null,null,"Cálculo del cobro de vehículos $us","Monto final Bs."]
["TARIFARIO POR TIPO DE MERCANCIA Y RECINTO",null,null,1,"interior/frontera"]
["GENERAL INTERIOR",{"$f":"IF(AND(PROFORMA_TEMP!B11=1,PROFORMA_TEMP!B10=1,PROFORMA_TEMP!E5=\"LIBRE\"),0,IF(AND(PROFORMA_TEMP!B11=1,PROFORMA_TEMP!B10=1,PROFORMA_TEMP!E5<>\"LIBRE\"),1.2,\"ERROR\"))","v":"ERROR"},null,null,"valor de tarifario * períodos veh.","calculo realizado en Bs."]
["GENERAL FRONTERA",{"$f":"IF(AND(PROFORMA_TEMP!B11=1,PROFORMA_TEMP!B10=2,PROFORMA_TEMP!E5=\"LIBRE\"),0,IF(AND(PROFORMA_TEMP!B11=1,PROFORMA_TEMP!B10=2,PROFORMA_TEMP!E5<>\"LIBRE\"),1.8,\"ERROR\"))","v":"ERROR"}]
["GENERAL AEROPUERTO",{"$f":"IF(AND(PROFORMA_TEMP!B11=1,PROFORMA_TEMP!B10=3,PROFORMA_TEMP!E5=\"LIBRE\"),0,IF(AND(PROFORMA_TEMP!B11=1,PROFORMA_TEMP!B10=3,PROFORMA_TEMP!E5<>\"LIBRE\"),0.09,\"ERROR\"))","v":0}]
["PELIGROSA INTERIOR",{"$f":"IF(AND(PROFORMA_TEMP!B11=2,PROFORMA_TEMP!B10=1,PROFORMA_TEMP!E5=\"LIBRE\"),0,IF(AND(PROFORMA_TEMP!B11=2,PROFORMA_TEMP!B10=1,PROFORMA_TEMP!E5<>\"LIBRE\"),1.5,\"ERROR\"))","v":"ERROR"}]
["PELIGROSA FRONTERA",{"$f":"IF(AND(PROFORMA_TEMP!B11=2,PROFORMA_TEMP!B10=2,PROFORMA_TEMP!E5=\"LIBRE\"),0,IF(AND(PROFORMA_TEMP!B11=2,PROFORMA_TEMP!B10=2,PROFORMA_TEMP!E5<>\"LIBRE\"),2,\"ERROR\"))","v":"ERROR"}]
["PELIGROSA AEROPUERTO",{"$f":"IF(AND(PROFORMA_TEMP!B11=2,PROFORMA_TEMP!B10=3,PROFORMA_TEMP!E5=\"LIBRE\"),0,IF(AND(PROFORMA_TEMP!B11=2,PROFORMA_TEMP!B10=3,PROFORMA_TEMP!E5<>\"LIBRE\"),1.5,\"ERROR\"))","v":"ERROR"}]
["CONTENEDOR DE 20 INTERIOR",{"$f":"IF(AND(PROFORMA_TEMP!B11=3,PROFORMA_TEMP!B10=1,PROFORMA_TEMP!E3>=1,PROFORMA_TEMP!E3<=15),7,IF(AND(PROFORMA_TEMP!B11=3,PROFORMA_TEMP!B10=1,PROFORMA_TEMP!E3>=16,PROFORMA_TEMP!E3<=31),9,IF(AND(PROFORMA_TEMP!B11=3,PROFORMA_TEMP!B10=1,PROFORMA_TEMP!E3>31),10,\"ERROR\")))","v":"ERROR"}]
["CONTENEDOR DE 20 FRONTERA",{"$f":"IF(AND(PROFORMA_TEMP!B11=3,PROFORMA_TEMP!B10=2,PROFORMA_TEMP!E3>=1,PROFORMA_TEMP!E3<=15),8,IF(AND(PROFORMA_TEMP!B11=3,PROFORMA_TEMP!B10=2,PROFORMA_TEMP!E3>=16,PROFORMA_TEMP!E3<=31),10,IF(AND(PROFORMA_TEMP!B11=3,PROFORMA_TEMP!B10=2,PROFORMA_TEMP!E3>31),11,\"ERROR\")))","v":"ERROR"}]
["CONTENDOR DE 20 AEROPUERTO",{"$f":"IF(AND(PROFORMA_TEMP!B11=3,PROFORMA_TEMP!B10=3,PROFORMA_TEMP!E3>=1,PROFORMA_TEMP!E3<=15),7,IF(AND(PROFORMA_TEMP!B11=3,PROFORMA_TEMP!B10=3,PROFORMA_TEMP!E3>=16,PROFORMA_TEMP!E3<=31),9,IF(AND(PROFORMA_TEMP!B11=3,PROFORMA_TEMP!B10=3,PROFORMA_TEMP!E3>31),10,\"ERROR\")))","v":"ERROR"}]
["CONTENEDOR DE 40 INTERIOR",{"$f":"IF(AND(PROFORMA_TEMP!B11=4,PROFORMA_TEMP!B10=1,PROFORMA_TEMP!E3>=1,PROFORMA_TEMP!E3<=15),13,IF(AND(PROFORMA_TEMP!B11=4,PROFORMA_TEMP!B10=1,PROFORMA_TEMP!E3>=16,PROFORMA_TEMP!E3<=31),17,IF(AND(PROFORMA_TEMP!B11=4,PROFORMA_TEMP!B10=1,PROFORMA_TEMP!E3>31),20,\"ERROR\")))","v":"ERROR"}]
["CONTENEDOR DE 40 FRONTERA",{"$f":"IF(AND(PROFORMA_TEMP!B11=4,PROFORMA_TEMP!B10=2,PROFORMA_TEMP!E3>=1,PROFORMA_TEMP!E3<=15),14,IF(AND(PROFORMA_TEMP!B11=4,PROFORMA_TEMP!B10=2,PROFORMA_TEMP!E3>=16,PROFORMA_TEMP!E3<=31),18,IF(AND(PROFORMA_TEMP!B11=4,PROFORMA_TEMP!B10=2,PROFORMA_TEMP!E3>31),21,\"ERROR\")))","v":"ERROR"}]
["CONTENDOR DE 40 AEROPUERTO",{"$f":"IF(AND(PROFORMA_TEMP!B11=4,PROFORMA_TEMP!B10=3,PROFORMA_TEMP!E3>=1,PROFORMA_TEMP!E3<=15),7,IF(AND(PROFORMA_TEMP!B11=4,PROFORMA_TEMP!B10=3,PROFORMA_TEMP!E3>=16,PROFORMA_TEMP!E3<=31),9,IF(AND(PROFORMA_TEMP!B11=4,PROFORMA_TEMP!B10=3,PROFORMA_TEMP!E3>31),10,\"ERROR\")))","v":"ERROR"}]
["GRANELES INTERIOR",{"$f":"IF(AND(PROFORMA_TEMP!B11=5,PROFORMA_TEMP!B10=1),0.05,\"ERROR\")","v":"ERROR"}]
["GRANELES FRONTERA",{"$f":"IF(AND(PROFORMA_TEMP!B11=5,PROFORMA_TEMP!B10=2),0.06,\"ERROR\")","v":"ERROR"}]
["VEHICULOS INTERIOR",{"$f":"IF(AND(PROFORMA_TEMP!B11=6,PROFORMA_TEMP!B10=1,PROFORMA_TEMP!B8<=500),6,IF(AND(PROFORMA_TEMP!B11=6,PROFORMA_TEMP!B10=1,PROFORMA_TEMP!B8>=501,PROFORMA_TEMP!B8<=800),7,IF(AND(PROFORMA_TEMP!B11=6,PROFORMA_TEMP!B10=1,PROFORMA_TEMP!B8>=801,PROFORMA_TEMP!B8<=1200),8,IF(AND(PROFORMA_TEMP!B11=6,PROFORMA_TEMP!B10=1,PROFORMA_TEMP!B8>=1201,PROFORMA_TEMP!B8<=2500),18,IF(AND(PROFORMA_TEMP!B11=6,PROFORMA_TEMP!B10=1,PROFORMA_TEMP!B8>2500),20,\"ERROR\")))))","v":"ERROR"}]
["VEHICULOS FRONTERA",{"$f":"IF(AND(PROFORMA_TEMP!B11=6,PROFORMA_TEMP!B10=2,PROFORMA_TEMP!B8<=500),7,IF(AND(PROFORMA_TEMP!B11=6,PROFORMA_TEMP!B10=2,PROFORMA_TEMP!B8>=501,PROFORMA_TEMP!B8<=800),8,IF(AND(PROFORMA_TEMP!B11=6,PROFORMA_TEMP!B10=2,PROFORMA_TEMP!B8>=801,PROFORMA_TEMP!B8<=1200),9,IF(AND(PROFORMA_TEMP!B11=6,PROFORMA_TEMP!B10=2,PROFORMA_TEMP!B8>=1201,PROFORMA_TEMP!B8<=2500),19,IF(AND(PROFORMA_TEMP!B11=6,PROFORMA_TEMP!B10=2,PROFORMA_TEMP!B8>2500),21,\"ERROR\")))))","v":"ERROR"}]
[]
["SEGURO DE ALMACENAMIENTO",{"$f":"IF(PROFORMA_TEMP!B10=1,0.08,IF(PROFORMA_TEMP!B10=2,0.08,IF(PROFORMA_TEMP!B10=3,0.1,\"ERROR\")))","v":0.1}]
[]
["CALCULO DEL COBRO SEGUN TARIFARIO $us"]
["COBRO MERCANCIA GENERAL INTERIOR/FRONTERA x Ton",{"$f":"IF(AND(PROFORMA_TEMP!B11=1,OR(PROFORMA_TEMP!B10=1,PROFORMA_TEMP!B10=2)),PROFORMA_TEMP!B9*PROFORMA_TEMP!C17,\"ERROR\")","v":"ERROR"}]
["COBRO MERCANCIA GENERAL AEROPUERTO x Kg",{"$f":"IF(AND(PROFORMA_TEMP!B11=1,PROFORMA_TEMP!B10=3),PROFORMA_TEMP!B8*PROFORMA_TEMP!C17,\"ERROR\")","v":0}]
["COBRO MERCANCIA PELIGROS INTERIOR/FRONTERA x Ton",{"$f":"IF(AND(PROFORMA_TEMP!B11=2,OR(PROFORMA_TEMP!B10=1,PROFORMA_TEMP!B10=2)),PROFORMA_TEMP!B9*PROFORMA_TEMP!C17,\"ERROR\")","v":"ERROR"}]
["COBRO MERCANCIA PELIGROSA AEROPUERTO x Kg",{"$f":"IF(AND(PROFORMA_TEMP!B11=2,PROFORMA_TEMP!B10=3),PROFORMA_TEMP!B8*PROFORMA_TEMP!C17,\"ERROR\")","v":"ERROR"}]
["COBRO CONTENEDOR DE 20 INTERIOR/FRONTERA/AEROPUERTO <= 31 DIAS",{"$f":"IF(AND(PROFORMA_TEMP!B11=3,OR(PROFORMA_TEMP!B10=1,PROFORMA_TEMP!B10=2,PROFORMA_TEMP!B10=3),PROFORMA_TEMP!E3<=31),PROFORMA_TEMP!C17*PROFORMA_TEMP!B12,\"ERROR\")","v":"ERROR"}]
["COBRO CONTENEDOR DE 20 INTERIOR/FRONTERA/AEROPUERTO > 31 DIAS",{"$f":"IF(AND(PROFORMA_TEMP!B11=3,OR(PROFORMA_TEMP!B10=1,PROFORMA_TEMP!B10=2,PROFORMA_TEMP!B10=3),PROFORMA_TEMP!E3>31),PROFORMA_TEMP!C17*(PROFORMA_TEMP!E3-31)*PROFORMA_TEMP!B12,\"ERROR\")","v":"ERROR"}]
["COBRO CONTENEDOR DE 40 INTERIOR/FRONTERA/AEROPUERTO <= 31 DIAS",{"$f":"IF(AND(PROFORMA_TEMP!B11=4,OR(PROFORMA_TEMP!B10=1,PROFORMA_TEMP!B10=2,PROFORMA_TEMP!B10=3),PROFORMA_TEMP!E3<=31),PROFORMA_TEMP!C17*PROFORMA_TEMP!B12,\"ERROR\")","v":"ERROR"}]
["COBRO CONTENEDOR DE 40 INTERIOR/FRONTERA/AEROPUERTO > 31 DIAS",{"$f":"IF(AND(PROFORMA_TEMP!B11=4,OR(PROFORMA_TEMP!B10=1,PROFORMA_TEMP!B10=2,PROFORMA_TEMP!B10=3),PROFORMA_TEMP!E3>31),PROFORMA_TEMP!C17*(PROFORMA_TEMP!E3-31)*PROFORMA_TEMP!B12,\"ERROR\")","v":"ERROR"}]
["COBRO GRANELES INTERIOR/FRONTERA",{"$f":"IF(AND(PROFORMA_TEMP!B11=5,OR(PROFORMA_TEMP!B10=1,PROFORMA_TEMP!B10=2)),PROFORMA_TEMP!C17*PROFORMA_TEMP!B9*PROFORMA_TEMP!E3,\"ERROR\")","v":"ERROR"}]
["COBRO VEHICULOS INTERIOR/FRONTERA",{"$f":"IF(AND(PROFORMA_TEMP!B11=6,OR(PROFORMA_TEMP!B10=1,PROFORMA_TEMP!B10=2)),PROFORMA_TEMP!C17*PROFORMA_TEMP!E7*PROFORMA_TEMP!B12,\"ERROR\")","v":"ERROR"}]
[]
["CONTENEDORES"]
[1]
[2]